fUSD/lending_fUSD_20250617
["ID","MTS","AMOUNT","RATE_DAILY","PERIOD"]
[366305991,1750180254154,-490.0,0.00016438,2]
[366305993,1750180254168,-490.0,0.00016438,2]
[366305996,1750180254185,-682.860624,0.00016438,2]
[366305999,1750180254203,-41.29289708,0.00016438,2]
[366306001,1750180254216,-4271.29306292,0.00016438,2]
[366306004,1750180254234,-500.0,0.00016438,2]
[366306006,1750180254252,-490.03388767,0.00016438,2]
[366306009,1750180254268,-1507.55279093,0.00016438,2]
[366306105,1750180255329,-432.71959327,0.00016438,2]
[366306112,1750180255393,-528.00587479,0.00016438,2]
[366306114,1750180255407,-1277.87479042,0.00016438,2]
[366306117,1750180255419,-291.89940713,0.00016438,2]
[366306119,1750180255433,-683.07059287,0.00016438,2]
[366306121,1750180255444,-324.17940713,0.00016438,2]
[366306124,1750180255459,-165.82059287,0.00016438,2]
[366306126,1750180255471,-2137.99,0.00016438,2]
[366306129,1750180255482,-1051.21,0.00016438,2]
[366306131,1750180255494,-641.41,0.00016438,2]
[366306133,1750180255506,-490.0,0.00016438,2]
[366306136,1750180255524,-490.0,0.00016438,2]
[366306138,1750180255537,-490.0,0.00016438,2]
[366306141,1750180255549,-490.0,0.00016438,2]
[366306143,1750180255560,-480.05158523,0.00016438,2]
[366306146,1750180255586,-573.95841477,0.00016438,2]
[366306148,1750180255599,-490.0,0.00016438,2]
[366306151,1750180255612,-1609.4,0.00016438,2]
[366306153,1750180255625,-884.12,0.00016438,2]
[366306155,1750180255637,-490.0,0.00016438,2]
[366306157,1750180255650,-1224.77,0.00016438,2]
[366306160,1750180255662,-997.82,0.00016438,2]
[366306162,1750180255674,-3363.57,0.00016438,2]
[366306164,1750180255687,-1744.21,0.00016438,2]
[366306166,1750180255700,-490.0,0.00016438,2]
[366306169,1750180255712,-490.0,0.00016438,2]
[366306171,1750180255722,-490.0,0.00016438,2]
[366306173,1750180255732,-490.0,0.00016438,2]
[366306175,1750180255741,-2438.74,0.00016438,2]
[366306177,1750180255753,-9864.46,0.00016438,2]
[366306179,1750180255762,-490.0,0.00016438,2]
[366306181,1750180255772,-1532.83,0.00016438,2]
[366306183,1750180255782,-490.0,0.00016438,2]
[366306185,1750180255791,-5608.25,0.00016438,2]
[366306187,1750180255801,-1225.97,0.00016438,2]
[366306189,1750180255810,-1567.63,0.00016438,2]
[366306191,1750180255820,-490.0,0.00016438,2]
[366306193,1750180255829,-490.0,0.00016438,2]
[366306195,1750180255839,-743.08,0.00016438,2]
[366306197,1750180255851,-490.0,0.00016438,2]
[366306199,1750180255861,-490.0,0.00016438,2]
[366306201,1750180255870,-490.0,0.00016438,2]
[366306203,1750180255882,-490.0,0.00016438,2]
[366306205,1750180255893,-6941.9,0.00016438,2]
[366306207,1750180255904,-3856.46,0.00016438,2]
[366306209,1750180255919,-490.0,0.00016438,2]
[366306211,1750180255931,-4910.83,0.00016438,2]
[366306213,1750180255941,-490.0,0.00016438,2]
[366306215,1750180255951,-490.0,0.00016438,2]
[366306217,1750180255961,-490.0,0.00016438,2]
[366306219,1750180255971,-490.0,0.00016438,2]
[366306221,1750180255981,-1461.76,0.00016438,2]
[366306223,1750180255991,-490.0,0.00016438,2]
[366306226,1750180256001,-1796.71,0.00016438,2]
[366306228,1750180256011,-490.0,0.00016438,2]
[366306230,1750180256021,-744.4,0.00016438,2]
[366306232,1750180256032,-490.0,0.00016438,2]
[366306234,1750180256041,-5858.85,0.00016438,2]
[366306236,1750180256050,-490.0,0.00016438,2]
[366306300,1750180256669,-1234.57,0.00016438,2]
[366306304,1750180256692,-490.0,0.00016438,2]
[366306307,1750180256714,-640.35,0.00016438,2]
[366306310,1750180256743,-837.68,0.00016438,2]
[366306314,1750180256767,-1732.51,0.00016438,2]
[366306316,1750180256781,-2705.09,0.00016438,2]
[366306318,1750180256794,-620.5560552,0.00016438,2]
[366306320,1750180256803,-490.0,0.00016438,2]
[366306322,1750180256813,-490.0,0.00016438,2]
[366306324,1750180256823,-1758.19,0.00016438,2]
[366306327,1750180256832,-866.69,0.00016438,2]
[366306329,1750180256842,-490.0,0.00016438,2]
[366306330,1750180256856,-3347.28,0.00016438,2]
[366306333,1750180256866,-490.0,0.00016438,2]
[366306334,1750180256875,-490.0,0.00016438,2]
[366306337,1750180256886,-604.11,0.00016438,2]
[366306339,1750180256896,-490.0,0.00016438,2]
[366306341,1750180256907,-1336.78,0.00016438,2]
[366306343,1750180256917,-3946.07,0.00016438,2]
[366306345,1750180256927,-490.0,0.00016438,2]
[366306347,1750180256940,-490.0,0.00016438,2]
[366306349,1750180256950,-678.94,0.00016438,2]
[366306351,1750180256959,-490.0,0.00016438,2]
[366306353,1750180256970,-556.09,0.00016438,2]
[366306355,1750180256980,-6095.88,0.00016438,2]
[366306357,1750180256989,-490.0,0.00016438,2]
[366306358,1750180256999,-490.0,0.00016438,2]
[366306359,1750180257010,-905.07,0.00016438,2]
[366306360,1750180257021,-490.0,0.00016438,2]
[366306361,1750180257030,-490.0,0.00016438,2]
[366306362,1750180257039,-490.0,0.00016438,2]
[366306363,1750180257048,-490.0,0.00016438,2]
[366306364,1750180257061,-490.0,0.00016438,2]
[366306365,1750180257070,-1720.74,0.00016438,2]
[366306366,1750180257080,-1209.72,0.00016438,2]
[366306367,1750180257089,-338.28298757,0.00016438,2]
[366306368,1750180257098,-490.0,0.00016438,2]
[366306369,1750180257107,-490.0,0.00016438,2]
[366306371,1750180257118,-1239.62,0.00016438,2]
[366306373,1750180257129,-490.0,0.00016438,2]
[366306375,1750180257138,-806.38,0.00016438,2]
[366306377,1750180257148,-490.0,0.00016438,2]
[366306379,1750180257158,-1732.28,0.00016438,2]
[366306381,1750180257167,-490.0,0.00016438,2]
[366306383,1750180257177,-490.0,0.00016438,2]
[366306385,1750180257187,-490.0,0.00016438,2]
[366306387,1750180257197,-482.5529354,0.00016438,2]
[366306389,1750180257206,-490.0,0.00016438,2]
[366306391,1750180257215,-9908.78,0.00016438,2]
[366306393,1750180257225,-2613.4,0.00016438,2]
[366306395,1750180257234,-490.0,0.00016438,2]
[366306397,1750180257244,-490.0,0.00016438,2]
[366306399,1750180257253,-543.55,0.00016438,2]
[366306401,1750180257263,-490.0,0.00016438,2]
[366306403,1750180257272,-490.0,0.00016438,2]
[366306405,1750180257282,-4806.82,0.00016438,2]
[366306407,1750180257292,-765.19,0.00016438,2]
[366306409,1750180257301,-638.12,0.00016438,2]
[366306411,1750180257310,-1603.68,0.00016438,2]
[366306413,1750180257320,-490.0,0.00016438,2]
[366306415,1750180257330,-490.0,0.00016438,2]
[366306417,1750180257339,-7591.9,0.00016438,2]
[366306419,1750180257348,-490.0,0.00016438,2]
[366306421,1750180257358,-490.0,0.00016438,2]
[366306423,1750180257367,-315.52949213,0.00016438,2]
[366306425,1750180257378,-2759.9,0.00016438,2]
[366306427,1750180257387,-6320.68,0.00016438,2]
[366306429,1750180257397,-989.08,0.00016438,2]
[366306431,1750180257407,-850.69,0.00016438,2]
[366306433,1750180257416,-2657.43,0.00016438,2]
[366306435,1750180257426,-490.0,0.00016438,2]
[366306437,1750180257435,-482.8359979,0.00016438,2]
[366306439,1750180257445,-490.0,0.00016438,2]
[366306441,1750180257455,-490.0,0.00016438,2]
[366306443,1750180257464,-3412.59,0.00016438,2]
[366306445,1750180257474,-490.0,0.00016438,2]
[366306447,1750180257483,-781.32,0.00016438,2]
[366306449,1750180257493,-858.57,0.00016438,2]
[366306451,1750180257502,-490.0,0.00016438,2]
[366306453,1750180257512,-490.0,0.00016438,2]
[366306455,1750180257522,-490.0,0.00016438,2]
[366306457,1750180257532,-530.09,0.00016438,2]
[366306459,1750180257542,-490.0,0.00016438,2]
[366306461,1750180257551,-490.0,0.00016438,2]
[366306463,1750180257561,-3561.77,0.00016438,2]
[366306465,1750180257570,-1350.4,0.00016438,2]
[366306467,1750180257579,-490.0,0.00016438,2]
[366306469,1750180257589,-490.0,0.00016438,2]
[366306471,1750180257598,-156.630503,0.00016438,2]
[366306473,1750180257608,-523.26,0.00016438,2]
[366306475,1750180257618,-1066.47,0.00016438,2]
[366306477,1750180257629,-612.07,0.00016438,2]
[366306479,1750180257638,-490.0,0.00016438,2]
[366306481,1750180257648,-612.07,0.00016438,2]
[366306483,1750180257657,-1072.8,0.00016438,2]
[366306485,1750180257667,-612.07,0.00016438,2]
[366306487,1750180257676,-317.93504839,0.00016438,2]
[366306489,1750180257685,-667.09,0.00016438,2]
[366306491,1750180257695,-612.07,0.00016438,2]
[366306493,1750180257704,-612.07,0.00016438,2]
[366306495,1750180257713,-490.0,0.00016438,2]
[366306497,1750180257723,-490.0,0.00016438,2]
[366306500,1750180257742,-490.0,0.00016438,2]
[366306502,1750180257753,-490.0,0.00016438,2]
[366306504,1750180257763,-361.59949102,0.00016438,2]
[366306506,1750180257773,-490.0,0.00016438,2]
[366306508,1750180257783,-490.0,0.00016438,2]
[366306510,1750180257793,-610.9,0.00016438,2]
[366306512,1750180257803,-771.9,0.00016438,2]
[366306514,1750180257812,-490.0,0.00016438,2]
[366306517,1750180257824,-866.04,0.00016438,2]
[366306519,1750180257834,-490.0,0.00016438,2]
[366306521,1750180257845,-490.0,0.00016438,2]
[366306523,1750180257858,-302.88779062,0.00016438,2]
[366306525,1750180257867,-490.0,0.00016438,2]
[366306527,1750180257879,-808.47,0.00016438,2]
[366306529,1750180257888,-490.0,0.00016438,2]
[366306531,1750180257898,-490.0,0.00016438,2]
[366306533,1750180257908,-365.04704999,0.00016438,2]
[366306535,1750180257919,-490.0,0.00016438,2]
[366306537,1750180257931,-490.0,0.00016438,2]
[366306539,1750180257941,-616.63,0.00016438,2]
[366306541,1750180257950,-490.0,0.00016438,2]
[366306543,1750180257960,-911.15,0.00016438,2]
[366306545,1750180257970,-490.0,0.00016438,2]
[366306547,1750180257980,-4786.64,0.00016438,2]
[366306549,1750180257989,-490.0,0.00016438,2]
[366306552,1750180257999,-490.0,0.00016438,2]
[366306554,1750180258009,-1666.81,0.00016438,2]
[366306555,1750180258019,-1361.42,0.00016438,2]
[366306558,1750180258028,-490.0,0.00016438,2]
[366306560,1750180258038,-490.0,0.00016438,2]
[366306561,1750180258048,-490.0,0.00016438,2]
[366306564,1750180258058,-490.0,0.00016438,2]
[366306566,1750180258068,-595.5,0.00016438,2]
[366306568,1750180258079,-2475.43,0.00016438,2]
[366306570,1750180258089,-490.0,0.00016438,2]
[366306572,1750180258099,-150.0,0.00016438,2]
[366306574,1750180258109,-757.72483081,0.00016452,2]
[366306576,1750180258118,-150.0,0.00016452,2]
[366306578,1750180258131,-170.85,0.00016462,2]
[366306580,1750180258141,-170.85,0.00016462,2]
[366306582,1750180258151,-170.85,0.00016462,2]
[366306584,1750180258162,-170.85,0.00016463,2]
[366306586,1750180258172,-333.75,0.0001647,2]
[366306589,1750180258182,-500.0,0.00016473,2]
[366306591,1750180258197,-500.0,0.00016473,2]
[366306593,1750180258207,-162.13078994,0.00016473,2]
[366306595,1750180258217,-500.0,0.00016473,2]
[366306597,1750180258227,-500.0,0.00016473,2]
[366306599,1750180258238,-197.10135034,0.00016473,2]
[366306601,1750180258247,-500.0,0.00016473,2]
[366306603,1750180258257,-500.0,0.00016473,2]
[366306605,1750180258267,-500.0,0.00016473,2]
[366306607,1750180258277,-503.58100641,0.00016473,2]
[366306609,1750180258287,-502.32082111,0.00016473,2]
[366306612,1750180258297,-500.0,0.00016473,2]
[366306614,1750180258307,-500.0,0.00016473,2]
[366306616,1750180258317,-151.0,0.00016496,2]
[366306618,1750180258327,-151.0,0.00016496,2]
[366306620,1750180258338,-250.0,0.00016499,2]
[366306622,1750180258348,-300.0,0.00016499,2]
[366306624,1750180258357,-19645.32,0.000165,2]
[366306626,1750180258368,-1000.0,0.000165,2]
[366306628,1750180258378,-1920.49070731,0.00016525,2]
[366306630,1750180258388,-1400.513,0.00016556,2]
[366306632,1750180258398,-833.87704394,0.00016562,2]
[366306634,1750180258407,-757.72483081,0.0001659,2]
[366306636,1750180258418,-983.858393,0.00016592,2]
[366306638,1750180258428,-520.86,0.00016594,2]
[366306640,1750180258439,-520.86,0.00016594,2]
[366306643,1750180258449,-520.86,0.00016594,2]
[366306645,1750180258460,-520.86,0.00016594,2]
[366306647,1750180258470,-520.95109585,0.00016594,2]
[366306649,1750180258480,-694.53,0.000166,2]
[366306651,1750180258490,-1000.0,0.000166,2]
[366306653,1750180258501,-531.29,0.00016601,2]
[366306655,1750180258511,-531.29,0.00016601,2]
[366306657,1750180258521,-531.29,0.00016601,2]
[366306659,1750180258532,-500.0,0.00016601,2]
[366306661,1750180258543,-500.0,0.00016601,2]
[366306664,1750180258555,-500.0,0.00016601,2]
[366306666,1750180258566,-612.07,0.00016601,2]
[366306668,1750180258577,-612.07,0.00016601,2]
[366306670,1750180258588,-612.07,0.00016601,2]
[366306672,1750180258599,-612.07,0.00016601,2]
[366306675,1750180258610,-1446.0,0.00016602,2]
[366306677,1750180258625,-198.820021,0.00016602,2]
[366306679,1750180258637,-198.820021,0.00016602,2]
[366306681,1750180258648,-198.820021,0.00016602,2]
[366306683,1750180258659,-198.820021,0.00016602,2]
[366306685,1750180258670,-198.820021,0.00016602,2]
[366306687,1750180258680,-198.820021,0.00016602,2]
[366306689,1750180258691,-198.820021,0.00016602,2]
[366306692,1750180258702,-198.820021,0.00016602,2]
[366306694,1750180258712,-198.820021,0.00016602,2]
[366306696,1750180258723,-198.820021,0.00016602,2]
[366306698,1750180258734,-490.0,0.00016602,2]
[366306700,1750180258745,-2426.893226,0.00016602,2]
[366306702,1750180258755,-151.0,0.00016602,2]
[366306704,1750180258766,-151.0,0.00016602,2]
[366306706,1750180258777,-151.0,0.00016602,2]
[366306709,1750180258788,-151.0,0.00016602,2]
[366306711,1750180258799,-151.0,0.00016602,2]
[366306713,1750180258810,-151.0,0.00016602,2]
[366306715,1750180258821,-151.0,0.00016602,2]
[366306717,1750180258832,-151.0,0.00016602,2]
[366306719,1750180258844,-151.0,0.00016602,2]
[366306722,1750180258858,-161.69499,0.00016602,2]
[366306724,1750180258869,-490.0,0.00016602,2]
[366306726,1750180258880,-2207.869427,0.00016602,2]
[366306728,1750180258895,-490.0,0.00016602,2]
[366306730,1750180258905,-490.0,0.00016602,2]
[366306732,1750180258915,-635.62,0.00016602,2]
[366306735,1750180258926,-490.0,0.00016602,2]
[366306737,1750180258938,-490.0,0.00016602,2]
[366306739,1750180258949,-490.0,0.00016602,2]
[366306741,1750180258959,-490.0,0.00016602,2]
[366306743,1750180258970,-490.0,0.00016602,2]
[366306745,1750180258980,-490.0,0.00016602,2]
[366306748,1750180258991,-490.0,0.00016602,2]
[366306750,1750180259002,-490.0,0.00016602,2]
[366306752,1750180259012,-490.0,0.00016602,2]
[366306754,1750180259024,-490.0,0.00016602,2]
[366306756,1750180259035,-490.0,0.00016602,2]
[366306758,1750180259046,-490.0,0.00016602,2]
[366306760,1750180259057,-490.0,0.00016602,2]
[366306763,1750180259067,-490.0,0.00016602,2]
[366306765,1750180259078,-490.0,0.00016602,2]
[366306767,1750180259088,-490.0,0.00016602,2]
[366306769,1750180259099,-490.0,0.00016602,2]
[366306771,1750180259110,-490.0,0.00016602,2]
[366306773,1750180259121,-490.0,0.00016602,2]
[366306775,1750180259135,-490.0,0.00016602,2]
[366306778,1750180259146,-490.0,0.00016602,2]
[366306780,1750180259157,-490.0,0.00016602,2]
[366306782,1750180259167,-490.0,0.00016602,2]
[366306784,1750180259177,-490.0,0.00016602,2]
[366306786,1750180259188,-490.0,0.00016602,2]
[366306788,1750180259199,-639.85,0.00016602,2]
[366306790,1750180259209,-490.0,0.00016602,2]
[366306793,1750180259221,-628.05,0.00016602,2]
[366306795,1750180259231,-178.28665484,0.00016602,2]
[366306797,1750180259241,-490.0,0.00016602,2]
[366306799,1750180259251,-490.0,0.00016602,2]
[366306801,1750180259261,-541.29,0.00016602,2]
[366306803,1750180259271,-490.0,0.00016602,2]
[366306805,1750180259282,-490.0,0.00016602,2]
[366306807,1750180259293,-490.0,0.00016602,2]
[366306809,1750180259303,-490.0,0.00016602,2]
[366306811,1750180259314,-519.78,0.00016602,2]
[366306813,1750180259324,-490.0,0.00016602,2]
[366306815,1750180259334,-490.0,0.00016602,2]
[366306816,1750180259344,-490.0,0.00016602,2]
[366306817,1750180259354,-490.0,0.00016602,2]
[366306818,1750180259364,-490.0,0.00016602,2]
[366306819,1750180259374,-490.0,0.00016602,2]
[366306820,1750180259386,-490.0,0.00016602,2]
[366306821,1750180259396,-490.0,0.00016602,2]
[366306822,1750180259405,-490.0,0.00016602,2]
[366306823,1750180259415,-490.0,0.00016602,2]
[366306824,1750180259435,-490.0,0.00016602,2]
[366306825,1750180259446,-490.0,0.00016602,2]
[366306827,1750180259457,-490.0,0.00016602,2]
[366306830,1750180259468,-151.0,0.00016602,2]
[366306832,1750180259478,-151.0,0.00016602,2]
[366306834,1750180259488,-151.0,0.00016602,2]
[366306836,1750180259499,-151.0,0.00016602,2]
[366306838,1750180259509,-151.0,0.00016602,2]
[366306840,1750180259521,-490.0,0.00016602,2]
[366306842,1750180259532,-490.0,0.00016602,2]
[366306844,1750180259542,-490.0,0.00016602,2]
[366306846,1750180259553,-490.0,0.00016602,2]
[366306848,1750180259564,-490.0,0.00016602,2]
[366306850,1750180259575,-490.0,0.00016602,2]
[366306852,1750180259586,-490.0,0.00016602,2]
[366306855,1750180259596,-964.23,0.00016602,2]
[366306857,1750180259607,-490.0,0.00016602,2]
[366306859,1750180259617,-490.0,0.00016602,2]
[366306861,1750180259629,-490.0,0.00016602,2]
[366306863,1750180259641,-490.0,0.00016602,2]
[366306865,1750180259652,-490.0,0.00016602,2]
[366306867,1750180259663,-490.0,0.00016602,2]
[366306869,1750180259674,-876.39,0.00016602,2]
[366306872,1750180259684,-490.0,0.00016602,2]
[366306874,1750180259695,-490.0,0.00016602,2]
[366306876,1750180259706,-490.0,0.00016602,2]
[366306878,1750180259716,-490.0,0.00016602,2]
[366306880,1750180259727,-490.0,0.00016602,2]
[366306882,1750180259738,-490.0,0.00016602,2]
[366306884,1750180259749,-490.0,0.00016602,2]
[366306886,1750180259759,-490.0,0.00016602,2]
[366306889,1750180259769,-490.0,0.00016602,2]
[366306891,1750180259780,-572.51,0.00016602,2]
[366306893,1750180259790,-490.0,0.00016602,2]
[366306895,1750180259801,-372.29246139,0.00016602,2]
[366306897,1750180259812,-490.0,0.00016602,2]
[366306900,1750180259826,-490.0,0.00016602,2]
[366306902,1750180259837,-490.0,0.00016602,2]
[366306904,1750180259849,-490.0,0.00016602,2]
[366306906,1750180259860,-490.0,0.00016602,2]
[366306908,1750180259871,-490.0,0.00016602,2]
[366306910,1750180259883,-490.0,0.00016602,2]
[366306912,1750180259895,-544.79,0.00016602,2]
[366306914,1750180259906,-490.0,0.00016602,2]
[366306917,1750180259917,-490.0,0.00016602,2]
[366306919,1750180259928,-490.0,0.00016602,2]
[366306921,1750180259939,-490.0,0.00016602,2]
[366306923,1750180259950,-547.17,0.00016602,2]
[366306925,1750180259960,-490.0,0.00016602,2]
[366306927,1750180259971,-490.0,0.00016602,2]
[366306929,1750180259982,-490.11,0.00016602,2]
[366306931,1750180259992,-532.25,0.00016602,2]
[366306933,1750180260004,-490.0,0.00016602,2]
[366306935,1750180260015,-490.0,0.00016602,2]
[366306938,1750180260025,-604.68,0.00016602,2]
[366306940,1750180260036,-401.75403511,0.00016602,2]
[366306942,1750180260047,-602.5,0.00016602,2]
[366306944,1750180260059,-490.0,0.00016602,2]
[366306946,1750180260071,-490.0,0.00016602,2]
[366306948,1750180260082,-490.0,0.00016602,2]
[366306950,1750180260094,-1008.75,0.00016602,2]
[366306952,1750180260105,-490.0,0.00016602,2]
[366306975,1750180260476,-490.0,0.00016602,2]
[366306979,1750180260506,-490.0,0.00016602,2]
[366306981,1750180260516,-490.0,0.00016602,2]
[366306983,1750180260526,-490.0,0.00016602,2]
[366306985,1750180260536,-490.0,0.00016602,2]
[366306987,1750180260545,-1960.54,0.00016602,2]
[366306989,1750180260555,-490.0,0.00016602,2]
[366306991,1750180260565,-1588.52,0.00016602,2]
[366306993,1750180260574,-490.0,0.00016602,2]
[366306995,1750180260584,-490.0,0.00016602,2]
[366306997,1750180260594,-1241.56,0.00016602,2]
[366306999,1750180260604,-490.0,0.00016602,2]
[366307001,1750180260614,-512.82,0.00016602,2]
[366307003,1750180260624,-490.0,0.00016602,2]
[366307005,1750180260636,-490.0,0.00016602,2]
[366307007,1750180260647,-592.9,0.00016602,2]
[366307009,1750180260658,-490.0,0.00016602,2]
[366307011,1750180260668,-490.0,0.00016602,2]
[366307013,1750180260679,-490.0,0.00016602,2]
[366307015,1750180260689,-490.0,0.00016602,2]
[366307017,1750180260699,-490.0,0.00016602,2]
[366307019,1750180260709,-496.45697289,0.00016602,2]
[366307021,1750180260719,-490.0,0.00016602,2]
[366307023,1750180260729,-490.0,0.00016602,2]
[366307026,1750180260739,-490.0,0.00016602,2]
[366307028,1750180260749,-490.0,0.00016602,2]
[366307030,1750180260759,-490.0,0.00016602,2]
[366307031,1750180260770,-635.34,0.00016602,2]
[366307033,1750180260780,-490.0,0.00016602,2]
[366307035,1750180260790,-490.0,0.00016602,2]
[366307038,1750180260801,-490.0,0.00016602,2]
[366307040,1750180260811,-504.11243279,0.00016602,2]
[366307042,1750180260821,-849.96,0.00016602,2]
[366307044,1750180260830,-490.0,0.00016602,2]
[366307046,1750180260840,-564.66,0.00016602,2]
[366307048,1750180260850,-2315.38,0.00016602,2]
[366307050,1750180260863,-490.0,0.00016602,2]
[366307051,1750180260874,-490.0,0.00016602,2]
[366307053,1750180260886,-490.0,0.00016602,2]
[366307054,1750180260897,-490.0,0.00016602,2]
[366307055,1750180260907,-490.0,0.00016602,2]
[366307056,1750180260918,-1116.43,0.00016602,2]
[366307057,1750180260927,-490.0,0.00016602,2]
[366307058,1750180260938,-630.68,0.00016602,2]
[366307059,1750180260948,-490.0,0.00016602,2]
[366307060,1750180260959,-490.0,0.00016602,2]
[366307061,1750180260970,-490.0,0.00016602,2]
[366307062,1750180260981,-1444.79,0.00016602,2]
[366307063,1750180260990,-490.0,0.00016602,2]
[366307064,1750180261001,-490.0,0.00016602,2]
[366307065,1750180261012,-1551.42,0.00016602,2]
[366307066,1750180261022,-271.99095853,0.00016602,2]
[366307067,1750180261032,-490.0,0.00016602,2]
[366307068,1750180261043,-490.0,0.00016602,2]
[366307069,1750180261053,-490.0,0.00016602,2]
[366307070,1750180261064,-490.0,0.00016602,2]
[366307071,1750180261074,-490.0,0.00016602,2]
[366307072,1750180261085,-490.0,0.00016602,2]
[366307073,1750180261095,-490.0,0.00016602,2]
[366307074,1750180261105,-490.0,0.00016602,2]
[366307075,1750180261115,-490.0,0.00016602,2]
[366307076,1750180261125,-490.0,0.00016602,2]
[366307077,1750180261139,-843.5,0.00016602,2]
[366307078,1750180261149,-490.0,0.00016602,2]
[366307079,1750180261159,-490.0,0.00016602,2]
[366307080,1750180261171,-490.0,0.00016602,2]
[366307081,1750180261183,-490.0,0.00016602,2]
[366307082,1750180261193,-490.0,0.00016602,2]
[366307083,1750180261204,-490.0,0.00016602,2]
[366307084,1750180261214,-490.0,0.00016602,2]
[366307085,1750180261225,-490.0,0.00016602,2]
[366307086,1750180261235,-490.0,0.00016602,2]
[366307087,1750180261245,-490.0,0.00016602,2]
[366307088,1750180261255,-490.0,0.00016602,2]
[366307089,1750180261265,-490.0,0.00016602,2]
[366307090,1750180261276,-490.0,0.00016602,2]
[366307091,1750180261286,-1286.68,0.00016602,2]
[366307092,1750180261297,-490.0,0.00016602,2]
[366307093,1750180261307,-660.6,0.00016602,2]
[366307094,1750180261317,-490.0,0.00016602,2]
[366307095,1750180261326,-490.0,0.00016602,2]
[366307096,1750180261336,-490.0,0.00016602,2]
[366307097,1750180261346,-1152.61,0.00016602,2]
[366307098,1750180261356,-737.4,0.00016602,2]
[366307099,1750180261366,-490.0,0.00016602,2]
[366307100,1750180261376,-794.87,0.00016602,2]
[366307101,1750180261388,-490.0,0.00016602,2]
[366307102,1750180261398,-490.0,0.00016602,2]
[366307103,1750180261407,-490.0,0.00016602,2]
[366307104,1750180261417,-490.0,0.00016602,2]
[366307105,1750180261426,-490.0,0.00016602,2]
[366307106,1750180261436,-490.0,0.00016602,2]
[366307107,1750180261445,-636.77,0.00016602,2]
[366307108,1750180261456,-490.0,0.00016602,2]
[366307109,1750180261465,-994.82,0.00016602,2]
[366307110,1750180261475,-329.69506729,0.00016602,2]
[366307111,1750180261485,-490.0,0.00016602,2]
[366307112,1750180261495,-490.0,0.00016602,2]
[366307113,1750180261505,-490.0,0.00016602,2]
[366307114,1750180261515,-1214.12,0.00016602,2]
[366307115,1750180261525,-490.0,0.00016602,2]
[366307116,1750180261534,-940.11,0.00016602,2]
[366307117,1750180261543,-490.0,0.00016602,2]
[366307118,1750180261553,-490.0,0.00016602,2]
[366307119,1750180261564,-613.55,0.00016602,2]
[366307120,1750180261575,-1296.68,0.00016602,2]
[366307121,1750180261585,-490.0,0.00016602,2]
[366307122,1750180261595,-490.0,0.00016602,2]
[366307123,1750180261605,-525.6,0.00016602,2]
[366307124,1750180261616,-490.0,0.00016602,2]